[Event "Julius Baer Generation Cup Prelims 2022"]
[Site "Online"]
[Date "2022.09.14"]
[Round "7.1"]
[White "Gelfand, Boris"]
[Black "Giri, Anish"]
[Result "1/2-1/2"]
[ECO "E11"]
[WhiteElo "2668"]
[BlackElo "2764"]
[Annotator "TA"]
[PlyCount "82"]
[EventDate "2022.09.12"]
[EventType "tourn"]
[EventCountry "NET"]
[SourceTitle "playchess.com"]
[Source "ChessBase"]
[SourceQuality "1"]
[TimeControl "900+10"]

{[%evp 10,82,17,22,34,33,32,23,29,10,3,0,6,8,34,43,37,39,32,37,35,29,93,82,80,0,0,0,0,0,0,0,0,0,0,0,0,0,0,0,0,0,0,0,0,0,0,0,-8,-5,0,0,0,-1,0,0,0,0,0,0,0,0,0,0,0,0,0,0,0,0,0,0,0,0,0]} 1. d4 {[%emt 0:00:00]} Nf6 {[%emt 0:00:00]} 2. c4 {[%emt 0:00:03]} e6 {[%emt 0:00:01]} 3. Nf3 {[%emt 0:00:01]} Bb4+ {[%emt 0:00:01]} 4. Nbd2 {[%emt 0:00:02][%cal Bb1d2,Bd2f1,Bf1g3][%mdl 32]} O-O {[%emt 0:00:01]} 5. a3 {[%emt 0:00:02]} Be7 {[%emt 0:00:00]} 6. e4 {[%emt 0:00:01]} d6 {[%emt 0:00:02][%cal Oe6e5] E11: Bogo-Indian.} 7. Be2 {[%emt 0:00:03]} Nfd7 {[%emt 0:00:02] The modern move.} 8. Nf1 {[%emt 0:00:31]} e5 {[%emt 0:00:32] White has an edge.} 9. Ng3 {[%emt 0:01:31]} exd4 {[%emt 0:00:06]} 10. Nxd4 {[%emt 0:00:01] [#]} Nc6 $146 {[%emt 0:00:15]} ({Predecessor:} 10... Re8 11. O-O Bf6 12. Rb1 a5 13. b3 Nc5 14. f3 g6 15. Be3 Nc6 16. Nb5 b6 {0-1 (33) Shinkevich,V (2466)-Gasanov,E (2505) Nizhnij Tagil 2015}) 11. Be3 {[%emt 0:00:02]} Nc5 {[%emt 0:01:14]} 12. Nxc6 {[%emt 0:02:50]} bxc6 {[%emt 0:00:02]} 13. b4 {[%emt 0:00:01]} Ne6 {[%emt 0:00:01]} 14. O-O {[%emt 0:00:02]} Bf6 {[%emt 0:00:04]} 15. Rb1 {[%emt 0:00:03]} c5 {[%emt 0:00:26] [#]} (15... a5 $11 {keeps the balance.}) 16. bxc5 $1 $16 {[%emt 0:01:53]} Nxc5 {[%emt 0:00:03]} 17. Bxc5 {[%emt 0:02:30]} (17. e5 $16 Bxe5 18. f4 (18. Bf3 Bxg3 19. Bxa8 Bf5 $16)) 17... dxc5 $11 {[%emt 0:00:02] The position is equal.} 18. e5 {[%emt 0:00:01]} Bxe5 {[%emt 0:00:05]} 19. Qxd8 {[%emt 0:00:07]} Rxd8 {[%emt 0:00:02]} 20. Bf3 {[%emt 0:00:01]} c6 $1 {[%emt 0:00:09]} 21. Bxc6 {[%emt 0:00:06]} Rb8 {[%emt 0:00:03]} 22. Rxb8 {[%emt 0:00:20]} Bxb8 {[%emt 0:00:00]} 23. Bd5 {[%emt 0:00:11]} Be6 {[%emt 0:01:46]} 24. Bxe6 {[%emt 0:01:44]} fxe6 {[%emt 0:00:00]} 25. Rb1 {[%emt 0:00:01]} Bxg3 {[%emt 0:02:28]} 26. hxg3 {[%emt 0:00:04][%mdl 4096] Endgame KR-KR} Rd4 {[%emt 0:00:08]} 27. Rb7 {[%emt 0:00:47]} a5 {[%emt 0:00:05]} 28. Ra7 {[%emt 0:00:02]} Rxc4 {[%emt 0:00:02] Strongly threatening ...Ra4.} 29. Rxa5 {[%emt 0:00:01]} Kf7 {[%emt 0:00:02]} 30. Ra7+ {[%emt 0:00:13]} Kf6 {[%emt 0:00:03]} 31. a4 {[%emt 0:00:21]} h5 {[%emt 0:00:23]} 32. a5 {[%emt 0:00:08]} Ra4 {[%emt 0:00:08]} 33. a6 {[%emt 0:00:01]} c4 {[%emt 0:01:05]} 34. Rc7 {[%emt 0:00:12]} Rxa6 {[%emt 0:00:03] [#] And now ...Ra1+ would win.} 35. Rxc4 {[%emt 0:00:01]} e5 {[%emt 0:00:02]} 36. f3 {[%emt 0:00:09]} g6 {[%emt 0:00:04]} 37. Kf2 {[%emt 0:00:03]} Ra2+ {[%emt 0:00:01]} 38. Kg1 {[%emt 0:00:01]} Ra1+ {[%emt 0:00:01]} 39. Kf2 {[%emt 0:00:01]} Ra2+ {[%emt 0:00:00]} 40. Kg1 {[%emt 0:00:01]} Ra1+ {[%emt 0:00:00]} 41. Kf2 {[%emt 0:00:01]} Ra2+ {[%emt 0:00:00] Weighted Error Value: White=0.03 (flawless) /Black=0.03 (flawless)} 1/2-1/2

[Event "Julius Baer Generation Cup Prelims 2022"]
[Site "Online"]
[Date "2022.09.14"]
[Round "7.2"]
[White "Yoo, Christopher Woojin"]
[Black "Duda, Jan-Krzysztof"]
[Result "0-1"]
[ECO "B15"]
[WhiteElo "2563"]
[BlackElo "2731"]
[Annotator "TA"]
[PlyCount "90"]
[EventDate "2022.09.12"]
[EventType "tourn"]
[EventCountry "NET"]
[SourceTitle "playchess.com"]
[Source "ChessBase"]
[SourceQuality "1"]
[TimeControl "900+10"]

{[%evp 14,90,28,29,20,29,34,33,21,13,36,25,39,4,10,7,20,4,48,28,40,0,0,-5,-32,-22,39,-113,-15,-38,-37,-44,-28,-4,0,-9,0,0,0,-133,-131,-152,-121,-140,-76,-60,-74,-75,-70,-185,41,57,81,0,0,0,0,0,0,-59,-56,-68,-8,-683,-713,-1786,-1773,-29960,-29961,-11655,-11655,-29993,-6318,-5722,-5631,-2608,-2135,-6744,-2586]} 1. e4 {[%emt 0:00:00]} c6 {[%emt 0:00:00]} 2. d4 {[%emt 0:00:29]} d5 {[%emt 0:00:01]} 3. Nc3 {[%emt 0:00:07]} dxe4 {[%emt 0:00:04]} 4. Nxe4 {[%emt 0:00:00]} Nf6 {[%emt 0:00:01]} 5. Nxf6+ {[%emt 0:00:03]} exf6 {[%emt 0:00:00]} 6. c3 {[%emt 0:00:01]} Bd6 {[%emt 0:00:03]} 7. Bd3 {[%emt 0:00:01]} O-O {[%emt 0:00:05]} 8. Qc2 {[%emt 0:00:02]} Re8+ {[%emt 0:00:04] B15: Caro-Kann: 3 Nc3: 3...g6 and 3...dxe4 4 Nxe4 Nf6 5 Nxf6+ exf6.} 9. Ne2 {[%emt 0:00:02]} h5 {[%emt 0:00:01]} 10. Be3 {[%emt 0:00:02]} Nd7 {[%emt 0:00:06] White is slightly better.} 11. O-O-O {[%emt 0:00:07]} h4 {[%emt 0:00:35]} 12. Kb1 {[%emt 0:00:56]} Nf8 {[%emt 0:00:02]} 13. h3 {[%emt 0:00:44][%cal Od4d5]} Be6 {[%emt 0:00:08]} 14. c4 {[%emt 0:00:02][%cal Bc3c4,Bc4c5][%mdl 32]} Rc8 {[%emt 0:00:04][%cal Ob7b5] [#]} 15. a3 $146 {[%emt 0:01:36]} ({Predecessor:} 15. Rdg1 b5 16. c5 Bb8 17. Nc3 b4 18. Ne4 f5 19. Nd6 Bxd6 20. cxd6 Qxd6 21. Bxf5 {½-½ (45) Saric,I (2669)-Howell,D (2676) Riadh 2017}) 15... g6 {[%emt 0:04:03]} 16. Nc3 {[%emt 0:02:06]} f5 {[%emt 0:00:03]} 17. c5 {[%emt 0:00:48]} Be7 {[%emt 0:01:00]} 18. Be2 {[%emt 0:06:31]} Nd7 {[%emt 0:02:47]} 19. Bf3 {[%emt 0:00:35]} b6 {[%emt 0:00:05] [#]} (19... Nf6 $11) 20. Qa4 $2 {[%emt 0:01:28]} (20. Bxc6 $1 $14 {keeps the upper hand.} Rxc6 21. d5 Bxd5 22. Nxd5) 20... Qc7 {[%emt 0:00:29]} (20... bxc5 $17 21. dxc5 (21. Qxa7 $2 Ra8 $17) (21. Bxc6 Nb6 $17) 21... Qc7) 21. d5 {[%emt 0:00:36]} cxd5 {[%emt 0:00:02]} 22. c6 {[%emt 0:00:52]} Nf6 {[%emt 0:00:45]} 23. Be2 $1 {[%emt 0:00:05]} Qxc6 {[%emt 0:01:53]} 24. Bb5 {[%emt 0:00:06] [#]} Qa8 {[%emt 0:00:28][%cal Oc8c3]} 25. Bxe8 {[%emt 0:00:03]} Nxe8 {[%emt 0:00:00]} 26. Nb5 {[%emt 0:00:20] [#]} (26. Qf4 $1 $11) 26... d4 $1 $17 {[%emt 0:00:49]} 27. Rxd4 {[%emt 0:01:23]} (27. Nxd4 $2 Rc4 28. Qb5 Qe4+ 29. Ka1 Nc7 $19) 27... a6 {[%emt 0:00:35]} (27... Qxg2 28. Re1 $15) 28. Nc3 {[%emt 0:00:10]} b5 {[%emt 0:00:11]} ({Black should try} 28... Qxg2 29. Rhd1 Bf6) 29. Qd1 {[%emt 0:00:01]} Bf6 {[%emt 0:01:31][%mdl 1024] Black has compensation.} 30. f3 {[%emt 0:00:13]} Qb7 {[%emt 0:01:39]} (30... Bxd4 $6 31. Qxd4 Rc4 32. Qe5 $15) 31. Rd3 {[%emt 0:00:31]} (31. Qe2 $15) 31... a5 $2 {[%emt 0:00:02]} ({Better is} 31... b4 $19 32. axb4 Qxb4) 32. Nd5 $14 {[%emt 0:00:06]} Bg7 {[%emt 0:01:18]} 33. Bg5 {[%emt 0:00:06]} (33. Nf4 $16) 33... Kh7 $11 {[%emt 0:00:02]} 34. Re1 $1 {[%emt 0:00:12]} b4 {[%emt 0:00:07] And now ...bxa3 would win.} 35. a4 {[%emt 0:00:01] aiming for Nf4.} ({Don't play} 35. Qb3 Nc7 36. Nf6+ Bxf6 37. Rxe6 Nxe6 $17) 35... b3 {[%emt 0:00:07] The board is on fire.} 36. Nc3 {[%emt 0:00:32]} ({But not} 36. Bxh4 Bxd5 37. Rxd5 Qb4 $19) (36. Re2 $11) 36... Qb4 $15 {[%emt 0:00:40][%cal Rc8c3] Strongly threatening ...Rxc3.} 37. Qd2 {[%emt 0:00:01]} Rc4 {[%emt 0:00:44]} (37... Bxc3 $15 38. bxc3 Qxa4) 38. Be3 $2 {[%emt 0:00:21][%mdl 8192] This costs White the game.} (38. Rd8 $11 Bxc3 39. bxc3 Qxa4 40. Qf2) 38... f4 $19 {[%emt 0:00:06]} 39. Bf2 {[%emt 0:00:02]} Bf5 {[%emt 0:00:15][%csl LRc3,LRd3] Hoping for ...Rxc3.} 40. Rxe8 {[%emt 0:00:08]} Rxc3 {[%emt 0:00:03]} 41. bxc3 {[%emt 0:00:17]} Bxc3 {[%emt 0:00:00]} 42. Rb8 {[%emt 0:00:12]} Bxd2 {[%emt 0:00:05] A strong pair of Bishops.} (42... Qc4 $142 43. Kc1 Bxd2+ 44. Kxd2 Qc2+ 45. Ke1 Bxd3 46. Rh8+ Kxh8 47. Bd4+ Kh7 48. g4 Qe2#) 43. Rxb4 {[%emt 0:00:01] Black is clearly winning.} Bxb4 {[%emt 0:00:02]} 44. Kb2 {[%emt 0:00:01] Inhibits Bc3+.} Bxd3 {[%emt 0:00:03]} 45. Kxb3 {[%emt 0:00:06]} g5 {[%emt 0:00:01] Weighted Error Value: White=0.87/Black=0.32} 0-1

[Event "Julius Baer Generation Cup Prelims 2022"]
[Site "Online"]
[Date "2022.09.14"]
[Round "7.4"]
[White "Keymer, Vincent"]
[Black "Saric, Ivan"]
[Result "1-0"]
[ECO "D78"]
[WhiteElo "2693"]
[BlackElo "2668"]
[Annotator "TA"]
[PlyCount "141"]
[EventDate "2022.09.12"]
[EventType "tourn"]
[EventCountry "NET"]
[SourceTitle "playchess.com"]
[Source "ChessBase"]
[SourceQuality "1"]
[TimeControl "900+10"]

{[%evp 11,141,0,29,0,0,-36,-32,-51,-31,-29,-39,-44,-50,-30,-10,-74,-72,-63,-17,-16,-19,-13,0,0,0,0,0,0,0,-12,0,0,0,0,23,14,15,0,8,-19,14,17,17,-50,0,-18,0,0,0,0,0,0,6,7,20,0,0,0,0,0,45,-19,31,19,131,32,27,8,8,10,8,0,0,0,0,0,0,0,0,0,0,0,0,0,0,0,135,0,0,0,68,0,0,0,145,156,163,176,262,259,12793,5608,1835,68,66,64,1550,242,219,156,265,219,413,410,395,394,522,516,1311,356,360,353,29977,381,720,653,29989,29990,29990,29991,29991,29988]} 1. c4 {[%emt 0:00:00]} g6 {[%emt 0:00:00]} 2. d4 {[%emt 0:00:02]} Nf6 {[%emt 0:00:03]} 3. g3 {[%emt 0:00:03]} c6 {[%emt 0:00:05]} 4. Bg2 {[%emt 0:00:02]} d5 {[%emt 0:00:01]} 5. Nf3 {[%emt 0:00:06]} Bg7 {[%emt 0:00:01]} 6. O-O {[%emt 0:00:02]} O-O {[%emt 0:00:02] CPLX 2.0 29 (d5xc4) (=29)} 7. a4 {[%emt 0:00:01] CPLX 2.1 29 (c4xd5) (=29). D78: Fianchetto Grünfeld: 6 0-0 c6.} Be6 {[%emt 0:00:13] CPLX 2.1} 8. Nc3 {[%emt 0:00:03] CPLX 2.1 36 (Nb1-a3) (=33)} dxc4 {[%emt 0:00:02] BESTDEEP} 9. e4 {[%emt 0:00:01] CPLX 2.2. Black is slightly better.} Na6 {[%emt 0:00:13] BESTDEEP} 10. h3 {[%emt 0:00:08] CPLX 2.4 0 (Bc1-e3) (=16)} Nb4 {[%emt 0:00:04] CPLX 2.4 0 (Nf6-e8) (=6)} 11. Be3 {[%emt 0:00:02] CPLX 2.5 5 (Qd1-e2) (=14)} Ne8 {[%emt 0:01:10] BESTDEEP} 12. Qe2 {[%emt 0:01:07] CPLX 2.4} Qa5 {[%emt 0:00:11] [#] CPLX 2.4 20 (Qd8-d7) (=7)} 13. Rab1 $146 {[%emt 0:04:51] RELBLUND 64 (Nf3-g5) (=19)} (13. Ng5 $11) ({Predecessor:} 13. Ng5 Bd7 14. f4 Nd3 15. Nf3 Nc7 16. g4 Ne6 17. f5 Nef4 18. Qd2 Nxg2 19. Kxg2 {1-0 (71) Cordova,E (2549)-Saric,I (2680) Chennai 2022}) 13... Nc7 $17 {[%emt 0:00:25] CPLX 2.5} 14. Ng5 {[%emt 0:02:02] [#] CPLX 2.5 0 (Nf3-e5) (=17)} Rad8 {[%emt 0:00:26] CPLX 3.2 46 (Bg7xd4) (=11)} (14... Bxd4 $1 $15 {feels stronger.} 15. Bxd4 Qxg5) 15. Nxe6 $11 {[%emt 0:01:31] CPLX 3.3} Nxe6 {[%emt 0:00:04] RECAPT} 16. d5 {[%emt 0:00:00] CPLX 2.5} cxd5 {[%emt 0:00:20] CPLX 3.1 13 (Ne6-d4) (=10)} 17. exd5 {[%emt 0:00:05] RECAPT} Nd4 {[%emt 0:00:46] CPLX 3.0 0 (Ne6-c7) (=9)} 18. Bxd4 {[%emt 0:00:58] CPLX 3.0} Bxd4 {[%emt 0:00:00] RECAPT} 19. Qxc4 {[%emt 0:00:01] BESTDEEP} Qc5 {[%emt 0:00:51] CPLX 2.8 0 (Bd4-f6) (=8)} 20. Qb3 {[%emt 0:00:55] BESTDEEP} a5 {[%emt 0:00:53] CPLX 2.5 12 (Bd4xc3) (=8)} 21. Rbd1 {[%emt 0:00:13] CPLX 2.6} Rd7 {[%emt 0:01:11] CPLX 2.8} 22. h4 {[%emt 0:01:05] BESTDEEP} Kh8 {[%emt 0:01:57] CPLX 2.8 23 (Rf8-d8) (=8)} 23. Rd2 {[%emt 0:00:26] BESTDEEP} f5 {[%emt 0:00:41] CPLX 2.8 1 (Qc5-b6) (=8)} 24. Kh2 {[%emt 0:02:52] CPLX 2.9 15 (Rf1-d1) (=8)} Bf6 {[%emt 0:02:16] CPLX 2.8 8 (Bd4-g7) (=8)} 25. Re1 {[%emt 0:00:16] CPLX 2.7 27 (Rf1-d1) (=9)} Rc8 {[%emt 0:00:10] CPLX 2.8 33 (e7-e5) (=9)} 26. Rc1 {[%emt 0:00:35] BESTDEEP} Rcd8 {[%emt 0:03:14] BESTDEEP} 27. Qd1 {[%emt 0:00:28] MISS-Nc3-a2 67 (Nc3-a2) (=12)} (27. Na2 $11 Qb6 28. Nxb4) 27... Qd6 {[%emt 0:00:16] CPLX 2.7 50 (Qc5-b6) (=11)} ({Better is} 27... Qb6 $1 $15) 28. f4 {[%emt 0:00:31] CPLX 2.9 18 (Nc3-b5) (=12)} Qb8 {[%emt 0:00:14][%cal Oe7e6] CPLX 2.6 18 (e7-e5) (=11)} 29. Qf3 {[%emt 0:00:22] CPLX 2.5 0 (Nc3-b5) (=11)} e6 {[%emt 0:01:22] CPLX 2.6 0 (Nb4-a6) (=11)} 30. Rcd1 $1 {[%emt 0:00:23] CPLX 2.7} b6 {[%emt 0:00:28] CPLX 2.7 0 (e6-e5) (=10)} 31. Qe3 {[%emt 0:00:51] CPLX 2.7} e5 {[%emt 0:00:27] CPLX 2.8 6 (e6xd5) (=10)} 32. Nb5 {[%emt 0:00:10] BESTDEEP} exf4 {[%emt 0:00:23] CPLX 2.8 13 (e5-e4) (=10)} 33. Qxf4 {[%emt 0:00:01] RECAPT 20 (g3xf4) (=10)} Qxf4 {[%emt 0:00:15] RECAPT} 34. gxf4 {[%emt 0:00:00] RECAPT} Bxh4 {[%emt 0:00:09] CPLX 2.3} 35. d6 {[%emt 0:00:15] Against Re7. EASY} Bf6 {[%emt 0:00:11] CPLX 2.7 45 (Rd8-e8) (=11)} (35... Re8 $5 {[%cal Re8e3]}) 36. Re2 {[%emt 0:00:20] RELBLUND 64 (Nb5-c7) (=12)} (36. Nc7 $14) 36... g5 {[%emt 0:00:38] CPLX 2.7 50 (Bf6-g7) (=12)} (36... Bg7 $11) 37. Re6 {[%emt 0:00:19] CPLX 3.0 12 (f4xg5) (=12)} Kg7 {[%emt 0:00:04] RELBLUND 112 (Rd7-f7) (=15)} (37... Rf7 $11) 38. fxg5 {[%emt 0:00:04] White is more active. RELBLUND 99 (Nb5-c7) (=14)} (38. Nc7 $1 $16) 38... Bxg5 $14 {[%emt 0:00:03] RECAPT} 39. Kg3 {[%emt 0:00:09] Against Bf4+. CPLX 2.8 19 (Bg2-h3) (=14)} Kf7 $132 {[%emt 0:00:24][%mdl 2048] Black is fighting back. BESTDEEP} 40. Re2 {[%emt 0:00:10] BESTDEEP} Rc8 $1 {[%emt 0:00:13] DEEPSTRONG} 41. Bd5+ {[%emt 0:00:12] CPLX 3.1 8 (Re2-e5) (=14)} Nxd5 {[%emt 0:00:10] EASY} 42. Rxd5 {[%emt 0:00:00] RECAPT} Rc5 {[%emt 0:00:23] CPLX 2.8} 43. Rxc5 {[%emt 0:00:16] CPLX 3.2} bxc5 $11 {[%emt 0:00:00][%mdl 4096] Endgame KRB-KRN. RECAPT} 44. Re5 {[%emt 0:00:02][%csl LRc5,LRf5] EASY} Bf6 {[%emt 0:00:05] CPLX 2.6 0 (c5-c4) (=12)} 45. Rxf5 {[%emt 0:00:18] CPLX 2.8} Ke6 {[%emt 0:00:01][%csl LRb2,LRf5] EASY} 46. Rxc5 {[%emt 0:00:01] CPLX 2.8} Bxb2 {[%emt 0:00:03] CPLX 2.4} 47. Kf4 {[%emt 0:00:12] CPLX 2.2 0 (Kg3-f3) (=12)} Bg7 {[%emt 0:00:20] CPLX 2.3 0 (h7-h6) (=11)} 48. Ke4 {[%emt 0:00:09] CPLX 2.2} Bf6 {[%emt 0:00:24] RELBLUND 135 (Bg7-a1) (=14)} (48... Ba1 $11 {remains equal.}) 49. Rf5 {[%emt 0:00:09] CPLX 2.3 135 (Rc5-c6) (=14)} (49. Rc6 $1 $16) 49... Bg7 {[%emt 0:00:46] BESTDEEP} 50. Rd5 {[%emt 0:00:20] Black must now prevent Nc7+. CPLX 2.4 0 (Rf5-g5) (=14)} Rf7 {[%emt 0:00:13] RELBLUND 68 (Rd7-d8) (=15)} (50... Rd8 $11) 51. Rc5 {[%emt 0:00:18] CPLX 2.5 68 (Nb5-c7) (=15)} (51. Nc7+ $14 Kd7 52. Na6) 51... Bf8 {[%emt 0:00:11] BESTDEEP} 52. Rc6 {[%emt 0:00:06] CPLX 2.3 0 (Rc5-h5) (=15)} Rf1 {[%emt 0:00:34] RELBLUND 145 (Rf7-g7) (=18)} (52... Rg7 $11) 53. Nd4+ $16 {[%emt 0:00:14] CPLX 2.3=>BLUNDERREACT} Kd7 {[%emt 0:00:00] EASY} 54. Kd5 {[%emt 0:00:03] Intending Rc7+ and mate. EASY} Rd1 {[%emt 0:00:03][%cal Od1d4] And now ...Rxd4+! would win. CPLX 2.6} 55. Ra6 {[%emt 0:00:17] CPLX 2.6} ({Weaker is} 55. Rc7+ Kd8 $11) 55... h5 $2 {[%emt 0:00:17] BEVAL 400 (Kd7-e8) (=25)} (55... Ke8 56. Ra8+ (56. Rxa5 Bxd6 57. Ke6 Rxd4 $11) 56... Kf7) 56. Ra7+ $18 {[%emt 0:00:08] BEVAL} Ke8 {[%emt 0:00:01] [#] BEVAL} 57. Ra8+ $2 {[%emt 0:00:01] MISSDEEP-d6-d7 400 (d6-d7) (=21)} (57. d7+ $1 $18 Ke7 58. Kc4 Rxd4+ 59. Kxd4) 57... Kf7 $14 {[%emt 0:00:04][%cal Of8d6] CPLX 2.2} 58. d7 {[%emt 0:00:09] CPLX 2.5} Bg7 $2 {[%emt 0:00:08][%mdl 8192] [#] Black cannot hold the game after this. BEVAL 400 (Bf8-e7) (=31)} (58... Be7 $14) 59. d8=N+ $2 {[%emt 0:00:10] RELBLUND 400 (Ra8-f8) (=28)} (59. Rf8+ $3 {[%mdl 512]} Bxf8 (59... Kxf8 60. d8=Q+) 60. d8=Q) 59... Kg6 $18 {[%emt 0:00:03] EASY} 60. N8e6 {[%emt 0:00:02] BESTDEEP} Bf6 {[%emt 0:00:03] MISS-Bg7xd4 109 (Bg7xd4) (=32)} (60... Bxd4 $16 {might work better.} 61. Nxd4 h4) 61. Ke4 {[%emt 0:00:10] Strongly threatening Nf4+.} h4 $2 {[%emt 0:00:05]} (61... Bxd4 {keeps fighting.} 62. Nxd4 h4 63. Ra6+ Kf7) 62. Nf4+ {[%emt 0:00:02]} Kf7 {[%emt 0:00:06]} 63. Ra7+ {[%emt 0:00:02]} Kg8 {[%emt 0:00:05]} 64. Nde6 {[%emt 0:00:05] Threatens to win with Kf5.} Bc3 {[%emt 0:00:13]} (64... Rf1 $142 65. Rxa5 Kf7 66. Ra7+ Be7) 65. Rc7 $2 {[%emt 0:00:03]} (65. Kf5 {[%cal Of4d5] Threatening mate with Nd5!} h3 66. Nxh3 Rf1+ 67. Nhf4) 65... Ba1 {[%emt 0:00:13]} 66. Kf5 {[%emt 0:00:05]} Rg1 $2 {[%emt 0:00:22]} (66... Rf1 $18 67. Rc5 Kf7 68. Rxa5 Bd4 69. Ng5+ Ke7) 67. Ng5 $2 {[%emt 0:00:32]} (67. Rc8+ {mates} Kf7 68. Rc7+ Kg8 69. Rc5 Rf1 70. Rxa5 Bc3 71. Ra8+ Kf7 72. Ra7+ Ke8 73. Ke4) 67... Kf8 $2 {[%emt 0:00:10]} (67... Rf1 68. Ra7 Kf8 69. Rxa5 Ke7) 68. Nd5 {[%emt 0:00:36]} Rf1+ {[%emt 0:00:11]} 69. Kg6 {[%emt 0:00:06][%cal Rc7c8] White mates.} Ke8 {[%emt 0:00:03]} 70. Ne6 {[%emt 0:00:05][%csl Gd5][%cal Rc7e7]} Rg1+ {[%emt 0:00:11]} 71. Kh5 {[%emt 0:00:03] Weighted Error Value: White=0.35/Black=0.25 (precise)} 1-0